fUSD/lending_fUSD_20250120
["ID","MTS","AMOUNT","RATE_DAILY","PERIOD"]
[349718552,1737393040095,-381.14479947,0.00021677,2]
[349718554,1737393040104,-616.38452667,0.00021677,2]
[349718556,1737393040113,-500.0,0.00021677,2]
[349718557,1737393040123,-500.0,0.00021677,2]
[349718560,1737393040132,-523.94573234,0.00021677,2]
[349718563,1737393040142,-500.0,0.00021677,2]
[349718566,1737393040151,-267.4867096,0.00021677,2]
[349718569,1737393040160,-632.16,0.00021677,2]
[349718570,1737393040172,-500.0,0.00021677,2]
[349718572,1737393040182,-500.0,0.00021677,2]
[349718574,1737393040191,-500.0,0.00021677,2]
[349718576,1737393040201,-500.0,0.00021677,2]
[349718578,1737393040211,-500.0,0.00021677,2]
[349718579,1737393040227,-500.0,0.00021677,2]
[349718581,1737393040236,-500.0,0.00021677,2]
[349718596,1737393040397,-500.0,0.00021677,2]
[349718598,1737393040408,-500.0,0.00021677,2]
[349718599,1737393040419,-500.0,0.00021677,2]
[349718601,1737393040429,-500.0,0.00021677,2]
[349718603,1737393040440,-500.0,0.00021677,2]
[349718605,1737393040450,-500.0,0.00021677,2]
[349718607,1737393040462,-526.27,0.00021677,2]
[349718609,1737393040479,-500.0,0.00021677,2]
[349718611,1737393040490,-266.73003509,0.00021677,2]
[349718612,1737393040500,-500.0,0.00021677,2]
[349718614,1737393040511,-500.0,0.00021677,2]
[349718616,1737393040522,-500.0,0.00021677,2]
[349718618,1737393040532,-369.43,0.00021677,2]
[349718620,1737393040542,-500.0,0.00021677,2]
[349718622,1737393040551,-500.0,0.00021677,2]
[349718623,1737393040561,-500.0,0.00021677,2]
[349718625,1737393040571,-500.0,0.00021677,2]
[349718627,1737393040580,-500.0,0.00021677,2]
[349718628,1737393040589,-500.0,0.00021677,2]
[349718630,1737393040599,-500.0,0.00021677,2]
[349718632,1737393040609,-500.0,0.00021677,2]
[349718634,1737393040619,-500.0,0.00021677,2]
[349718636,1737393040629,-500.0,0.00021677,2]
[349718638,1737393040638,-500.0,0.00021677,2]
[349718640,1737393040648,-993.38,0.00021677,2]
[349718642,1737393040658,-582.18885904,0.00021677,2]
[349718643,1737393040669,-500.0,0.00021677,2]
[349718645,1737393040678,-277.69705803,0.00021677,2]
[349718647,1737393040690,-1425.94,0.00021677,2]
[349718649,1737393040699,-500.0,0.00021677,2]
[349718651,1737393040708,-500.0,0.00021677,2]
[349718652,1737393040727,-500.0,0.00021677,2]
[349718654,1737393040738,-820.18,0.00021677,2]
[349718656,1737393040750,-507.09917656,0.00021677,2]
[349718658,1737393040761,-500.0,0.00021677,2]
[349718660,1737393040770,-500.0,0.00021677,2]
[349718662,1737393040779,-500.0,0.00021677,2]
[349718664,1737393040789,-500.0,0.00021677,2]
[349718665,1737393040798,-500.0,0.00021677,2]
[349718667,1737393040808,-500.0,0.00021677,2]
[349718669,1737393040817,-500.0,0.00021677,2]
[349718671,1737393040826,-500.0,0.00021677,2]
[349718673,1737393040835,-645.57,0.00021677,2]
[349718675,1737393040846,-500.0,0.00021677,2]
[349718677,1737393040856,-500.0,0.00021677,2]
[349718679,1737393040866,-1000.0,0.00021677,2]
[349718681,1737393040875,-500.0,0.00021677,2]
[349718682,1737393040884,-500.0,0.00021677,2]
[349718684,1737393040893,-6282.66106623,0.00021678,2]
[349718686,1737393040903,-647.76942599,0.00021685,2]
[349718688,1737393040914,-223.40843709,0.00021693,3]
[349718690,1737393040923,-200.0,0.000217,7]
[349718692,1737393040932,-1472.09694926,0.0002174,2]
[349718694,1737393040942,-410.48484718,0.00021748,2]
[349718696,1737393040952,-223.40843709,0.00021762,3]
[349718698,1737393040967,-1000.0,0.00021766,2]
[349718700,1737393040976,-3000.0,0.0002178,2]
[349718701,1737393040985,-150.0,0.00021783,2]
[349718703,1737393040994,-6282.66106623,0.00021789,2]
[349718705,1737393041003,-500.0,0.00021799,2]
[349718707,1737393041012,-810.85,0.00021799,2]
[349718709,1737393041021,-649.74,0.00021799,2]
[349718711,1737393041030,-800.0,0.000218,7]
[349718713,1737393041040,-9568.98582,0.000218,2]
[349718714,1737393041049,-500.0,0.00021824,2]
[349718716,1737393041058,-223.40843709,0.00021831,3]
[349718718,1737393041068,-500.0,0.0002184,2]
[349718720,1737393041077,-514.09614101,0.0002184,2]
[349718722,1737393041086,-500.0,0.0002184,2]
[349718724,1737393041095,-500.0,0.0002184,2]
[349718725,1737393041104,-628.15,0.0002184,2]
[349718727,1737393041113,-500.0,0.0002184,2]
[349718729,1737393041123,-156.35,0.0002184,2]
[349718731,1737393041132,-295.08,0.0002184,2]
[349718733,1737393041141,-500.0,0.0002184,2]
[349718735,1737393041151,-191.02,0.0002184,2]
[349718737,1737393041160,-456.49811197,0.0002184,2]
[349718739,1737393041169,-393.53,0.0002184,2]
[349718740,1737393041179,-500.0,0.0002184,2]
[349718742,1737393041188,-500.0,0.0002184,2]
[349718744,1737393041197,-533.11,0.0002184,2]
[349718746,1737393041206,-500.0,0.0002184,2]
[349718748,1737393041222,-500.0,0.0002184,2]
[349718750,1737393041231,-500.0,0.0002184,2]
[349718751,1737393041240,-601.92,0.0002184,2]
[349718753,1737393041249,-500.0,0.0002184,2]
[349718755,1737393041259,-500.0,0.0002184,2]
[349718757,1737393041268,-500.0,0.0002184,2]
[349718759,1737393041277,-500.0,0.0002184,2]
[349718761,1737393041288,-500.0,0.0002184,2]
[349718763,1737393041297,-500.0,0.0002184,2]
[349718765,1737393041307,-500.0,0.0002184,2]
[349718767,1737393041317,-500.0,0.0002184,2]
[349718768,1737393041328,-500.0,0.0002184,2]
[349718769,1737393041338,-500.0,0.0002184,2]
[349718770,1737393041348,-500.0,0.0002184,2]
[349718771,1737393041357,-393.07,0.0002184,2]
[349718772,1737393041368,-500.0,0.0002184,2]
[349718773,1737393041378,-500.0,0.0002184,2]
[349718774,1737393041389,-500.0,0.0002184,2]
[349718775,1737393041398,-500.0,0.0002184,2]
[349718776,1737393041408,-500.0,0.0002184,2]
[349718777,1737393041420,-500.0,0.0002184,2]
[349718778,1737393041430,-500.0,0.0002184,2]
[349718779,1737393041440,-285.93035026,0.0002184,2]
[349718780,1737393041449,-500.0,0.0002184,2]
[349718782,1737393041460,-500.0,0.0002184,2]
[349718783,1737393041478,-500.0,0.0002184,2]
[349718785,1737393041488,-500.0,0.0002184,2]
[349718787,1737393041497,-564.33,0.0002184,2]
[349718789,1737393041506,-503.83,0.0002184,2]
[349718791,1737393041516,-500.0,0.0002184,2]
[349718793,1737393041525,-500.0,0.0002184,2]
[349718795,1737393041536,-500.0,0.0002184,2]
[349718797,1737393041545,-500.0,0.0002184,2]
[349718799,1737393041555,-500.0,0.0002184,2]
[349718801,1737393041564,-500.0,0.0002184,2]
[349718803,1737393041574,-500.0,0.0002184,2]
[349718805,1737393041584,-500.0,0.0002184,2]
[349718807,1737393041594,-500.0,0.0002184,2]
[349718809,1737393041603,-500.0,0.0002184,2]
[349718811,1737393041613,-621.6,0.0002184,2]
[349718813,1737393041622,-500.0,0.0002184,2]
[349718814,1737393041633,-500.0,0.0002184,2]
[349718816,1737393041643,-500.0,0.0002184,2]
[349718818,1737393041654,-500.0,0.0002184,2]
[349718820,1737393041663,-500.0,0.0002184,2]
[349718822,1737393041675,-500.0,0.0002184,2]
[349718824,1737393041685,-500.0,0.0002184,2]
[349718826,1737393041694,-500.0,0.0002184,2]
[349718828,1737393041703,-150.0,0.0002185,2]
[349718830,1737393041719,-500.0,0.00021872,2]
[349718832,1737393041730,-500.0,0.00021872,2]
[349718834,1737393041740,-500.0,0.00021872,2]
[349718836,1737393041754,-548.73,0.00021872,2]
[349718838,1737393041763,-500.0,0.00021872,2]
[349718840,1737393041772,-518.2,0.00021872,2]
[349718842,1737393041781,-500.0,0.00021872,2]
[349718844,1737393041793,-500.0,0.00021872,2]
[349718846,1737393041802,-500.0,0.00021872,2]
[349718849,1737393041816,-670.85,0.00021872,2]
[349718851,1737393041826,-865.73,0.00021872,2]
[349718853,1737393041835,-500.0,0.00021872,2]
[349718855,1737393041846,-500.0,0.00021872,2]
[349718857,1737393041855,-500.0,0.00021872,2]
[349718859,1737393041865,-500.0,0.00021872,2]
[349718861,1737393041875,-998.44,0.00021872,2]
[349718863,1737393041885,-661.25,0.00021872,2]
[349718865,1737393041895,-500.0,0.00021872,2]
[349718867,1737393041905,-500.0,0.00021872,2]
[349718869,1737393041916,-500.0,0.00021872,2]
[349718871,1737393041925,-500.0,0.00021872,2]
[349718873,1737393041935,-1017.37,0.00021872,2]
[349718875,1737393041946,-522.17809422,0.00021872,2]
[349718877,1737393041956,-500.0,0.00021872,2]
[349718879,1737393041972,-500.0,0.00021872,2]
[349718881,1737393041982,-500.0,0.00021872,2]
[349718883,1737393041993,-500.0,0.00021872,2]
[349718885,1737393042003,-500.0,0.00021872,2]
[349718887,1737393042013,-500.0,0.00021872,2]
[349718889,1737393042022,-500.0,0.00021872,2]
[349718890,1737393042032,-500.0,0.00021872,2]
[349718891,1737393042042,-500.0,0.00021872,2]
[349718892,1737393042052,-500.0,0.00021872,2]
[349718893,1737393042062,-500.0,0.00021872,2]
[349718894,1737393042071,-732.97,0.00021872,2]
[349718895,1737393042081,-556.78,0.00021872,2]
[349718896,1737393042091,-500.0,0.00021872,2]
[349718897,1737393042101,-796.628746,0.00021873,2]
[349718898,1737393042111,-500.0,0.00021873,2]
[349718899,1737393042121,-648.22,0.00021873,2]
[349718900,1737393042131,-500.0,0.00021873,2]
[349718901,1737393042141,-500.0,0.00021873,2]
[349718902,1737393042151,-500.0,0.00021873,2]
[349718903,1737393042161,-500.0,0.00021873,2]
[349718904,1737393042171,-424.070828,0.00021873,2]
[349718905,1737393042181,-500.0,0.00021873,2]
[349718906,1737393042191,-500.0,0.00021873,2]
[349718907,1737393042202,-617.18,0.00021873,2]
[349718908,1737393042217,-506.44,0.00021873,2]
[349718909,1737393042227,-500.0,0.00021873,2]
[349718910,1737393042238,-500.0,0.00021873,2]
[349718911,1737393042248,-931.99,0.00021873,2]
[349718912,1737393042258,-500.0,0.00021873,2]
[349718913,1737393042267,-1012.09,0.00021873,2]
[349718914,1737393042277,-868.18,0.00021873,2]
[349718915,1737393042287,-500.0,0.00021873,2]
[349718916,1737393042296,-500.0,0.00021873,2]
[349718917,1737393042307,-500.0,0.00021873,2]
[349718918,1737393042317,-500.0,0.00021873,2]
[349718919,1737393042327,-1494.15,0.00021873,2]
[349718920,1737393042337,-746.13,0.00021873,2]
[349718921,1737393042348,-500.0,0.00021873,2]
[349718922,1737393042358,-530.63,0.00021873,2]
[349718923,1737393042367,-500.0,0.00021873,2]
[349718924,1737393042376,-500.0,0.00021873,2]
[349718925,1737393042385,-730.61,0.00021873,2]
[349718926,1737393042395,-687.99,0.00021873,2]
[349718927,1737393042404,-704.52,0.00021873,2]
[349718928,1737393042413,-165.656564,0.00021873,2]
[349718929,1737393042423,-507.05,0.00021873,2]
[349718930,1737393042432,-1328.32,0.00021873,2]
[349718931,1737393042441,-1097.76,0.00021873,2]
[349718932,1737393042451,-565.31,0.00021873,2]
[349718933,1737393042461,-197.50747047,0.00021884,2]
[349718934,1737393042475,-2000.0,0.0002189,2]
[349718935,1737393042484,-35825.0,0.0002189,7]
[349718936,1737393042494,-152.0,0.00021895,4]
[349718937,1737393042503,-2000.0,0.000219,2]
[349718938,1737393042513,-2000.0,0.000219,2]
[349718939,1737393042522,-6282.66106623,0.000219,2]
[349718940,1737393042532,-155.69921098,0.000219,2]
[349718941,1737393042542,-223.40843709,0.000219,3]
[349718942,1737393042552,-1411.0,0.000219,2]
[349718943,1737393042561,-500.0,0.00021917,3]
[349718944,1737393042573,-150.0,0.00021918,2]
[349718945,1737393042583,-500.0,0.00021951,2]
[349718946,1737393042592,-500.0,0.00021951,2]
[349718947,1737393042602,-500.0,0.00021951,2]
[349718948,1737393042612,-500.0,0.00021951,2]
[349718949,1737393042622,-237.13747281,0.00021951,2]
[349718950,1737393042631,-500.0,0.00021951,2]
[349718951,1737393042640,-621.36,0.00021951,2]
[349718952,1737393042650,-500.0,0.00021951,2]
[349718953,1737393042659,-470.02,0.00021951,2]
[349718954,1737393042672,-500.0,0.00021951,2]
[349718955,1737393042681,-500.0,0.00021951,3]
[349718956,1737393042691,-500.0,0.00021951,2]
[349718957,1737393042700,-500.0,0.00021951,2]
[349718958,1737393042710,-500.0,0.00021951,2]
[349718959,1737393042723,-500.0,0.00021951,2]
[349718960,1737393042733,-500.0,0.00021951,2]
[349718961,1737393042742,-344.48,0.00021951,2]
[349718962,1737393042754,-287.81,0.00021951,2]
[349718963,1737393042764,-500.0,0.00021951,2]
[349718964,1737393042778,-274.07,0.00021951,2]
[349718965,1737393042788,-500.0,0.00021951,2]
[349718966,1737393042798,-500.0,0.00021951,2]
[349718967,1737393042807,-500.0,0.00021951,2]
[349718968,1737393042817,-259.02,0.00021951,2]
[349718969,1737393042827,-500.0,0.00021951,2]
[349718970,1737393042837,-632.16,0.00021951,2]
[349718971,1737393042847,-500.0,0.00021951,2]
[349718972,1737393042858,-500.0,0.00021951,2]
[349718973,1737393042867,-500.0,0.00021951,2]
[349718974,1737393042877,-500.0,0.00021951,2]
[349718975,1737393042886,-500.0,0.00021951,2]
[349718976,1737393042933,-500.0,0.00021951,2]
[349718977,1737393042943,-416.23,0.00021951,2]
[349718978,1737393042952,-500.0,0.00021951,2]
[349718979,1737393042967,-500.0,0.00021951,2]
[349718980,1737393042977,-526.27,0.00021951,2]
[349718981,1737393042987,-500.0,0.00021951,2]
[349718982,1737393042997,-491.37,0.00021951,2]
[349718983,1737393043007,-500.0,0.00021951,2]
[349718984,1737393043016,-500.0,0.00021951,2]
[349718985,1737393043026,-500.0,0.00021951,2]
[349718986,1737393043035,-500.0,0.00021951,2]
[349718987,1737393043044,-500.0,0.00021951,2]
[349718988,1737393043054,-500.0,0.00021951,2]
[349718989,1737393043063,-500.0,0.00021951,2]
[349718990,1737393043073,-500.0,0.00021951,2]
[349718991,1737393043082,-500.0,0.00021951,2]
[349718993,1737393043091,-993.38,0.00021951,2]
[349718994,1737393043100,-1425.94,0.00021951,2]
[349718996,1737393043110,-500.0,0.00021951,2]
[349718997,1737393043119,-500.0,0.00021951,2]
[349718998,1737393043128,-820.18,0.00021951,2]
[349718999,1737393043138,-500.0,0.00021951,2]
[349719000,1737393043147,-500.0,0.00021951,2]
[349719001,1737393043156,-500.0,0.00021951,2]
[349719002,1737393043166,-500.0,0.00021951,2]
[349719004,1737393043176,-500.0,0.00021951,2]
[349719006,1737393043185,-500.0,0.00021951,2]
[349719008,1737393043195,-500.0,0.00021951,2]
[349719009,1737393043205,-645.57,0.00021951,2]
[349719010,1737393043217,-500.0,0.00021951,2]
[349719011,1737393043226,-500.0,0.00021951,2]
[349719012,1737393043235,-224.3,0.00021951,2]
[349719013,1737393043244,-500.0,0.00021951,2]
[349719014,1737393043254,-500.0,0.00021951,2]
[349719015,1737393043264,-200.99,0.0002196,2]
[349719016,1737393043273,-400.0,0.0002197,2]
[349719017,1737393043283,-400.0,0.0002197,2]
[349719018,1737393043293,-476.09307325,0.0002197,2]
[349719019,1737393043302,-500.0,0.00021973,2]
[349719020,1737393043310,-387.10659451,0.00021973,2]
[349719021,1737393043319,-500.0,0.00021973,2]
[349719022,1737393043329,-160.49519242,0.00021973,2]
[349719023,1737393043338,-500.0,0.00021973,2]
[349719024,1737393043347,-160.00917673,0.00021973,2]
[349719025,1737393043357,-200.0,0.0002199,8]
[349719026,1737393043367,-2329.8638,0.00021999,2]
[349719027,1737393043376,-500.0,0.00021999,2]
[349719028,1737393043385,-89415.94085129,0.00022,2]
[349719029,1737393043394,-1383.9679534,0.00022,2]
[349719030,1737393043404,-5604.63802593,0.00022,2]
[349719031,1737393043652,-878.58,0.00019644,2]
[349719032,1737393043661,-932.69401418,0.00020838,2]
[349719033,1737393043676,-145.86098582,0.00020838,2]
[349719034,1737393043685,-500.0,0.00021566,2]
[349719035,1737393043694,-500.0,0.00021566,2]
[349719036,1737393043704,-500.0,0.00021598,2]
[349719037,1737393043715,-500.0,0.00021677,2]
[349719038,1737393043724,-647.76942599,0.00021721,2]
[349719039,1737393043734,-500.0,0.0002184,2]
[349719040,1737393043744,-500.0,0.00021872,2]
[349719041,1737393043757,-500.0,0.00021951,2]
[349719042,1737393043767,-2757.87514197,0.00022,2]
[349719043,1737393043799,-537.262539,0.00019869,2]
[349719045,1737393043808,-12599.237461,0.00022,2]
[349719047,1737393043820,-2470.0,0.00022,2]
[349719050,1737393043833,-1144.19174585,0.00022,2]
[349719052,1737393043845,-13384.80504788,0.00022,2]
[349719054,1737393043861,-308561.70000004,0.00022,2]
[349719057,1737393043872,-522102.0521116,0.00022,2]
[349719059,1737393043883,-12208.84662574,0.00022,2]
[349719061,1737393043894,-10453.75048581,0.00022,2]
[349719063,1737393043905,-51250.00000002,0.00022,2]
[349719069,1737393043953,-4050696.6265763,0.00022,2]
[349719071,1737393043968,-4090.61,0.00022,2]
[349719073,1737393043980,-25262.37458482,0.00022,2]
[349719075,1737393043991,-30694.85951993,0.00022,2]
[349719078,1737393044003,-4136.20963986,0.00022,2]
[349719080,1737393044013,-75088.58609108,0.00022,2]
[349719082,1737393044024,-2280.98109804,0.00022,2]
[349719084,1737393044035,-6313.59800158,0.00022,2]
[349719086,1737393044046,-405.9808441,0.00022,2]
[349719088,1737393044057,-20600.0,0.00022,2]
[349719094,1737393044105,-216.86027105,0.00021598,2]
[349719096,1737393044114,-8173.55801834,0.00022,2]
[349719098,1737393044125,-341.24596483,0.00022,2]
[349719100,1737393044136,-538.70772478,0.00022,2]
[349719102,1737393044146,-106042.39999999,0.00022,2]
[349719107,1737393044186,-6703.99445292,0.00020425,2]
[349719110,1737393044198,-1668.73848648,0.00020425,2]
[349719113,1737393044225,-627.25,0.00020425,2]
[349719115,1737393044237,-4440.62800347,0.00020425,2]
[349719117,1737393044246,-500.0,0.00021599,2]
[349719119,1737393044257,-500.0,0.00021873,2]
[349719121,1737393044267,-30648.62647091,0.00022,2]
[349719123,1737393044278,-298.99907905,0.00022,2]
[349719125,1737393044289,-6977.65714755,0.00022,2]
[349719133,1737393044358,-500.0,0.00021677,2]
[349719135,1737393044367,-30.429,0.00021951,2]
[349719136,1737393044379,-469.571,0.00021951,2]
[349719137,1737393044388,-1216.629,0.00022,2]
[349719138,1737393044406,-743.62236,0.00022,2]
[349719139,1737393044416,-2052.8,0.00022,2]
[349719140,1737393044427,-13392.44166667,0.00022,2]
[349719141,1737393044441,-828.41688683,0.00022,2]
[349719142,1737393044452,-774.6985844,0.00022,2]
[349719143,1737393044467,-691.87529,0.00022,2]
[349719145,1737393044478,-521.75596643,0.00022,2]
[349719149,1737393044501,-500.0,0.00021598,2]
[349719151,1737393044510,-4969.84727551,0.00022,2]
[349719153,1737393044521,-955.62220302,0.00022,2]
[349719167,1737393044650,-258.15453366,0.00021598,2]
[349719169,1737393044662,-241.84546634,0.00021598,2]
[349719171,1737393044674,-500.0,0.00021677,2]
[349719173,1737393044684,-647.76942599,0.00021756,2]
[349719175,1737393044694,-500.0,0.00021872,2]
[349719177,1737393044706,-49296.07810768,0.00022,2]
[349719189,1737393044822,-500.0,0.00021598,2]
[349719191,1737393044831,-1144.234,0.00022,2]
[349719197,1737393044881,-440.33288287,0.00022,2]
[349719199,1737393044894,-205889.99999999,0.00022,2]
[349719201,1737393044906,-53171.94329299,0.00022,2]
[349719213,1737393045012,-1609.65803028,0.00022,2]
[349719216,1737393045029,-412.5,0.00021872,2]
[349719218,1737393045041,-87.5,0.00021872,2]
[349719220,1737393045050,-104074.96,0.00022,2]
[349719222,1737393045062,-2091.4,0.00022,2]
[349719224,1737393045073,-387240.78433317,0.00022,2]
[349719227,1737393045084,-9600.0,0.00022,2]
[349719229,1737393045095,-2076.3,0.00022,2]
[349719240,1737393045189,-913.5188708,0.00022,2]
[349719243,1737393045208,-400.0,0.000209,7]
[349719245,1737393045223,-500.0,0.00021598,2]
[349719247,1737393045233,-5493.295095,0.00022,2]
[349719249,1737393045244,-621.3888,0.00022,2]
[349719252,1737393045256,-3471.79387468,0.00022,2]
[349719254,1737393045268,-4699.9443663,0.00022,2]
[349719256,1737393045280,-2184.93832543,0.00022,2]
[349719391,1737393046293,-900.0,0.00021,7]
[349719394,1737393046303,-500.0,0.00021566,2]
[349719397,1737393046313,-433.024626,0.00021598,2]
[349719400,1737393046323,-500.0,0.00021598,2]
[349719402,1737393046332,-500.0,0.00021599,2]
[349719403,1737393046342,-500.0,0.00021677,2]
[349719405,1737393046352,-647.76942599,0.00021792,2]
[349719407,1737393046362,-500.0,0.0002184,2]
[349719409,1737393046372,-500.0,0.00021872,2]
[349719411,1737393046381,-433.024626,0.00021872,2]
[349719413,1737393046391,-500.0,0.00021873,2]
[349719416,1737393046402,-500.0,0.00021951,2]
[349719418,1737393046412,-1976.0,0.00022,2]
[349719420,1737393046422,-12767.31732201,0.00022,2]
[349719422,1737393046434,-19570.9210568,0.00022,2]
[349719424,1737393046446,-10336.5305976,0.00022,2]
[349719426,1737393046458,-10390.74,0.00022,2]
[349719429,1737393046478,-5165.0,0.00022,2]
[349719431,1737393046490,-3234.99992,0.00022,2]
[349719433,1737393046502,-6278.62969824,0.00022,2]
[349719436,1737393046515,-790.10000072,0.00022,2]
[349719442,1737393046571,-500.0,0.00021872,2]
[349719444,1737393046580,-3944.44381811,0.00022,2]
[349719450,1737393046626,-20424.0,0.00022,2]
[349719478,1737393046901,-320.17,0.00021598,2]
[349719484,1737393046958,-432.16,0.00021598,2]
[349719486,1737393046974,-752.33,0.00021872,2]
[349719488,1737393046984,-29744.4651245,0.00022,2]
[349719794,1737393111619,419.87222509,0.00022,120]
[349719796,1737393149358,636.10212066,0.00024,120]
[349719797,1737393465854,3000.56,0.00016,2]
[349719798,1737393500372,3000.56,0.000155,2]
[349719799,1737393500397,3000.56,0.000155,2]
[349719800,1737393548114,100.56,0.00015,2]
[349719801,1737393548138,800.56,0.00015,2]
[349719802,1737393684597,150.5,0.00010137,2]
[349719804,1737393908829,650.06,0.00012,2]
[349719805,1737393908855,800.56,0.00012,2]
[349719806,1737393908882,800.56,0.00012,2]
[349719807,1737393908907,800.56,0.00012,2]
[349719808,1737393908934,800.56,0.00012,2]
[349719809,1737393908960,800.56,0.00012,2]
[349719810,1737393908989,800.56,0.00012,2]
[349719811,1737393909024,800.56,0.00012,2]
[349719812,1737393909055,1142278.47229304,0.00012,2]
[349719813,1737393927017,770.29248192,0.000108,2]
[349719814,1737393931153,33366.50380808,0.00011,2]
[349719818,1737393990117,-164.4,0.00014978,2]
[349719819,1737393990140,-33.63363433,0.00015,2]
[349719821,1737394085963,41181.3043425,0.0001,2]
[349719825,1737394117305,202.00914712,0.00024,120]
[349719826,1737394126474,256.73696874,0.000107,2]
[349719829,1737394167093,-866.85468385,0.000149,2]
[349719830,1737394167116,-63.56636567,0.00015,2]
[349719831,1737394167140,-550.0,0.00015,2]
[349719832,1737394167174,-21.8635537,0.00015513,2]
[349719854,1737394232426,-151.1564463,0.00015513,2]
[349719855,1737394232436,-1273.50282656,0.000159,2]
[349719856,1737394232445,-300.0,0.00015999,2]
[349719857,1737394232455,-404.62452774,0.00016,2]
[349719858,1737394232464,-600.0,0.00017,2]
[349719859,1737394232478,-1481.14,0.00017029,2]
[349719860,1737394232488,-420.0,0.00017492,2]
[349719861,1737394232497,-1491.21851222,0.000181,2]
[349719862,1737394232509,-205.82867114,0.000181,2]
[349719863,1737394232518,-500.0,0.00018164,2]
[349719864,1737394232527,-500.0,0.00018164,2]
[349719865,1737394232537,-1443.75,0.00018225,2]
[349719866,1737394232546,-745.02130604,0.00018385,2]
[349719867,1737394232561,-369.75869396,0.00018385,2]
[349719868,1737394232570,-19.52336396,0.00018605,2]
[349719869,1737394232581,-230.47663604,0.00018605,2]
[349719870,1737394232591,-1807.9,0.00018646,30]
[349719871,1737394232600,-150.0,0.00018762,2]
[349719872,1737394232609,-250.0,0.00018797,2]
[349719873,1737394232618,-156.57282396,0.0001894,2]
[349719874,1737394232633,-843.42717604,0.0001894,2]
[349719875,1737394232643,-650.0,0.00019,2]
[349719876,1737394232652,-619.84757797,0.00019055,2]
[349719877,1737394232661,-587.0,0.00019125,2]
[349719878,1737394232670,-500.0,0.00019155,2]
[349719879,1737394232679,-193.37,0.00019173,2]
[349719880,1737394232688,-500.0,0.0001926,2]
[349719881,1737394232697,-413.76,0.00019267,2]
[349719882,1737394232707,-1481.14,0.00019293,2]
[349719883,1737394232720,-7075.49,0.000193,2]
[349719884,1737394232729,-118471.92243648,0.00019339,2]
[349719885,1737394232739,-1430.55,0.00019339,2]
[349719886,1737394232748,-7909.85,0.00019339,2]
[349719887,1737394232757,-150.99,0.00019339,2]
[349719888,1737394232766,-9040.55,0.00019339,2]
[349719889,1737394232776,-3202.31,0.00019339,2]
[349719890,1737394232785,-1514.51,0.00019339,2]
[349719891,1737394232794,-3598.84,0.00019339,2]
[349719892,1737394232803,-499.99,0.00019339,2]
[349719893,1737394232812,-150.99,0.00019339,2]
[349719894,1737394232821,-32136.3,0.00019339,2]
[349719895,1737394232831,-9999.99,0.00019339,2]
[349719896,1737394232840,-1380.97,0.00019339,2]
[349719897,1737394232849,-4129.71,0.00019339,2]
[349719898,1737394232858,-1876.35,0.00019339,2]